Cogmind - Beta 9.1 @@@ ROGUE MODE // 2019.11.11 @ 15:08:12 Player: MrPainting Result: Self-destructed Performance ------------- Evolutions (1) 500 Regions Visited (4) 800 Robots Destroyed (25) 125 Value Destroyed (459) 459 Prototype IDs (0) 0 Alien Tech Used (0) 0 Bonus (52) 52 TOTAL SCORE: 1936 Bonus ------- Follower Combat Kills 52 Cogmind --------- Core Integrity 328/400 Matter 289/300 Energy 250/250 System Corruption 2% Temperature Cool (220) Location -9/Mines Parts ------- Power (1) Ion Engine Propulsion (3) Light Treads Light Treads Light Treads Utility (3) Light Armor Plating Weapon (2) Beam Cannon Heavy Assault Rifle Inventory (4) Improved Ion Engine Light Assault Rifle Light Assault Rifle Heavy Assault Rifle Peak State ------------ Power Light Ion Engine Propulsion Light Treads Light Treads Light Treads Utility Light Armor Plating Weapon Heavy Assault Rifle Heavy Assault Rifle Inventory Improved Ion Engine Beam Cannon Light Assault Rifle Light Assault Rifle [Rating: 9] Favorites ----------- Power Ion Engine Engine Ion Engine Propulsion Light Treads Treads Light Treads Leg Aluminum Leg Utility Light Armor Plating Protection Light Armor Plating Weapon Heavy Assault Rifle Energy Gun Small Laser Energy Cannon Beam Cannon Ballistic Gun Heavy Assault Rifle Build | -11 -10 -10 -9 -9 ------- Run | Scr Mat Min Mat Min Slots Evolved 2 | . . . 2 . Power . | . . . . . Propulsion 1 | . . . 1 . Utility 1 | . . . 1 . Weapon . | . . . . . Parts Attached 17 | 5 . . 11 1 Power 4 | 1 . . 3 . Engine 4 | 1 . . 3 . Core . | . . . . . Reactor . | . . . . . Propulsion 6 | 2 . . 4 . Treads 4 | . . . 4 . Leg 2 | 2 . . . . Wheel . | . . . . . Hover . | . . . . . Flight . | . . . . . Utility 1 | . . . 1 . Device . | . . . . . Storage . | . . . . . Processor . | . . . . . Hackware . | . . . . . Protection 1 | . . . 1 . Artifact . | . . . . . Weapon 6 | 2 . . 3 1 Energy Gun 1 | 1 . . . . Energy Cannon 2 | . . . 1 1 Ballistic Gun 3 | 1 . . 2 . Ballistic Cannon . | . . . . . Launcher . | . . . . . Special Weapon . | . . . . . Impact Weapon . | . . . . . Slashing Weapon . | . . . . . Piercing Weapon . | . . . . . Special Melee Weapon . | . . . . . Unidentified Prototypes . | . . . . . Parts Lost 3 | . . . 3 . Power . | . . . . . Propulsion 2 | . . . 2 . Utility . | . . . . . Weapon 1 | . . . 1 . Highest Loss Streak 3 | . . . 3 . Average Slot Usage (%) 65 | . 57 57 61 77 Engine 8 | . . . 10 11 Treads 19 | . . . 19 33 Leg 7 | . 28 28 1 . Protection 7 | . . . 8 11 Energy Gun 3 | . 14 14 . . Energy Cannon 2 | . . . 4 . Ballistic Gun 17 | . 14 14 17 21 Naked Turns . | . . . . . Heaviest Build 14 | 6 3 3 14 14 Greatest Support 60 | 20 3 3 60 60 Greatest Overweight (x) 2 | 1 . . 2 . Average Overweight (x) . | . . . . . Largest Inventory Capacity 4 | 4 4 4 4 4 Average Capacity 4 | 4 4 4 4 4 Most Carried 4 | . 1 2 4 4 Average Carried 2 | . 1 1 2 4 Final Capacity 4 | 4 4 4 4 4 Final Carried 4 | . 1 2 4 4 Class Distribution -------------------- 64% | Scavenger-Mutant 35% | Mutant Dominant Class ---------------- Mutant | -10/Materials Mutant | -10/Mines Scavenger-Mutant | -9/Materials Scavenger-Mutant | -9/Mines Resources | -11 -10 -10 -9 -9 ----------- Run | Scr Mat Min Mat Min Matter Collected 641 | 210 . 62 313 56 Remotely . | . . . . . Salvage Created 718 | . . 80 618 20 Parts 62 | . . 9 53 . Haulers Intercepted 2 | . . . 2 . Recyclers Shooed . | . . . . . Parts Field Recycled . | . . . . . Retrieved Matter . | . . . . . Parts Self-Destructed . | . . . . . Prevented . | . . . . . Kills | -11 -10 -10 -9 -9 ------- Run | Scr Mat Min Mat Min Combat Hostiles Destroyed 19 | . . 5 13 1 Guns 15 | . . 5 9 1 Cannons 4 | . . . 4 . Classes Destroyed 7 | . . 1 5 1 Builder 2 | . . . 2 . Hauler 2 | . . . 2 . Watcher 2 | . . . 2 . Swarmer 11 | . . 5 6 . Grunt 2 | . . . 2 . Sentry 5 | . . . 5 . Assembled 1 | . . . . 1 Best Kill Streak 5 | . . 3 5 1 Combat Bots Only 4 | . . 3 4 1 Max Kills in Single Turn 1 | . . 1 1 1 Gunslinging . | . . . . . Exploded . | . . . . . Melee . | . . . . . Uniques/NPCs Destroyed . | . . . . . Combat | -11 -10 -10 -9 -9 -------- Run | Scr Mat Min Mat Min Damage Taken 757 | . . 214 512 31 Core 112 | . . 40 72 . Absorbed by Shields . | . . . . . Core Remaining (%) 92 | 100 . 84 . . Volleys Fired 76 | . . 10 47 19 Largest 2 | . . 2 2 2 Hottest 83 | . . 60 83 60 Shots Fired 136 | . . 20 90 26 Gun 109 | . . 20 74 15 Cannon 27 | . . . 16 11 Launcher . | . . . . . Special . | . . . . . Kinetic 99 | . . 10 74 15 Thermal 37 | . . 10 16 11 Explosive . | . . . . . Electromagnetic . | . . . . . Robot Hit Streak 13 | . . 4 13 7 Robot Miss Streak 3 | . . 3 3 3 Penetration Max . | . . . . . Secondary Targets 4 | . . 3 1 . Max Gunslinging Chain 1 | . . 1 1 . Shots Hit Robots 72 | . . 10 53 9 Core Hits 32 | . . 5 25 2 Critical Hits . | . . . . . Critical Kills . | . . . . . Critical Parts Destroyed . | . . . . . Melee Attacks . | . . . . . Impact . | . . . . . Slashing . | . . . . . Piercing . | . . . . . Sneak Attacks . | . . . . . Combat Hostiles . | . . . . . Follow-up Attacks . | . . . . . Damage Inflicted 1065 | . . 162 775 128 Guns 874 | . . 162 584 128 Cannons 191 | . . . 191 . Explosions . | . . . . . Melee . | . . . . . Ramming . | . . . . . Kinetic 789 | . . 77 584 128 Thermal 276 | . . 85 191 . Explosive . | . . . . . Electromagnetic . | . . . . . Impact . | . . . . . Slashing . | . . . . . Piercing . | . . . . . Highest Corruption 2 | . . . 2 2 Average Corruption 2 | . . . 2 2 Corruption Purged . | . . . . . Effects 7 | . . . 3 4 Message Errors 2 | . . . 1 1 Energy Discharges 3 | . . . 1 2 Weapon Failures 2 | . . . 1 1 Overload Shots . | . . . . . Overflow Damage . | . . . . . Projectiles . | . . . . . Explosions . | . . . . . Melee . | . . . . . Knockbacks . | . . . . . Impact . | . . . . . Kinetic . | . . . . . Secondary . | . . . . . Self-Inflicted Damage . | . . . . . Shots . | . . . . . Rammed . | . . . . . Targets Rammed . | . . . . . Kicked . | . . . . . Crushed . | . . . . . Highest Temperature 220 | . . 15 51 220 Average Temperature 36 | . . 10 14 88 Received Heat Transfer 192 | . . . 132 60 Siege Activations . | . . . . . Robots Corrupted . | . . . . . Combat Hostiles . | . . . . . Parts Fried . | . . . . . Impact Corruptions . | . . . . . Robots Melted . | . . . . . Combat Hostiles . | . . . . . Parts Melted 2 | . . 1 1 . Heat Transferred 607 | . . 200 407 . Parts Sabotaged . | . . . . . Parts Stolen . | . . . . . Parts Stripped . | . . . . . Power Chain Reactions . | . . . . . Missiles Intercepted . | . . . . . Alert | -11 -10 -10 -9 -9 ------- Run | Scr Mat Min Mat Min Peak Influence 397 | . . 120 397 178 Average Influence 148 | . . 24 245 140 Maximum Alert Level 1 | . . . 1 . Low Security (%) 75 | . . . . . Level 1 24 | . . . . . Level 2 . | . . . . . Level 3 . | . . . . . Level 4 . | . . . . . Level 5 . | . . . . . High Security . | . . . . . Max Security . | . . . . . Squads Dispatched . | . . . . . Investigation . | . . . . . Extermination . | . . . . . Reinforcement . | . . . . . Assault . | . . . . . Garrison . | . . . . . Intercept . | . . . . . Construction Impeded . | . . . . . Haulers Reinforced . | . . . . . Stealth | -11 -10 -10 -9 -9 --------- Run | Scr Mat Min Mat Min Distress Signals 4 | . . . 4 . Communications Jammed . | . . . . . Distress Signals . | . . . . . Times Spotted 34 | . . 9 22 3 Peak Tracking Total 6 | . 1 6 5 2 Tactical Retreats 4 | . . 1 2 1 Traps | -11 -10 -10 -9 -9 ------- Run | Scr Mat Min Mat Min Traps Triggered 1 | . . . 1 . Indirectly . | . . . . . Trap Hack Attempts . | . . . . . Triggered . | . . . . . Disarmed . | . . . . . Reprogrammed . | . . . . . Reused . | . . . . . Traps Extracted . | . . . . . Installed . | . . . . . Triggered . | . . . . . Machines | -11 -10 -10 -9 -9 ---------- Run | Scr Mat Min Mat Min Machines Disabled 1 | . . . 1 . Max in Single Turn 1 | . . . 1 . Machines Sabotaged . | . . . . . Garrisons Compromised . | . . . . . Overloaded Fab Kills . | . . . . . Fab Network Shutdowns . | . . . . . Hacking | -11 -10 -10 -9 -9 --------- Run | Scr Mat Min Mat Min Machines Accessed . | . . . . . Terminals . | . . . . . Fabricators . | . . . . . Repair Stations . | . . . . . Recycling Units . | . . . . . Scanalyzers . | . . . . . Garrison Access . | . . . . . Total Hacks . | . . . . . Successful . | . . . . . Failed . | . . . . . Catastrophic . | . . . . . Database Lockouts . | . . . . . Manual . | . . . . . Terminals . | . . . . . Fabricators . | . . . . . Repair Stations . | . . . . . Recycling Units . | . . . . . Scanalyzers . | . . . . . Garrison Access . | . . . . . Terminal Hacks . | . . . . . Fabricator Hacks . | . . . . . Repair Station Hacks . | . . . . . Recycling Unit Hacks . | . . . . . Scanalyzer . | . . . . . Garrison Access Hacks . | . . . . . Unauthorized Hacks . | . . . . . Terminals . | . . . . . Fabricators . | . . . . . Repair Stations . | . . . . . Recycling Units . | . . . . . Scanalyzers . | . . . . . Garrison Access . | . . . . . Data Cores Recovered . | . . . . . Used . | . . . . . Hacking Detections . | . . . . . Full Trace Events . | . . . . . Feedback Events . | . . . . . Feedback Blocked . | . . . . . Robot Schematics Acquired . | . . . . . Robots Built . | . . . . . Matter . | . . . . . Time . | . . . . . Total Robot Build Rating . | . . . . . Part Schematics Acquired . | . . . . . Parts Built . | . . . . . Matter . | . . . . . Time . | . . . . . Total Part Build Rating . | . . . . . Parts Repaired . | . . . . . Time . | . . . . . Parts Recycled . | . . . . . Recycled Matter . | . . . . . Retrieved Matter . | . . . . . Retrieved Components . | . . . . . Parts Scanalyzed . | . . . . . Part Schematics Acquired . | . . . . . Parts Damaged . | . . . . . Bothacking | -11 -10 -10 -9 -9 ------------ Run | Scr Mat Min Mat Min Used RIF Installer . | . . . . . Robots Hacked . | . . . . . Non-combat . | . . . . . Combat . | . . . . . Robot Hacks Applied . | . . . . . Relay Couplers Released . | . . . . . Robots Rewired . | . . . . . Allies Hacked . | . . . . . Hacks Repelled . | . . . . . Allies | -11 -10 -10 -9 -9 -------- Run | Scr Mat Min Mat Min Total Allies 3 | . . . . 3 Largest Group 3 | . . . . 3 Highest-Rated Group 40 | . . . . 40 Highest-Rated Ally 16 | . . . . 16 Total Orders . | . . . . . Ally Attacks 11 | . . . . 11 Total Damage 158 | . . . . 158 Kills 3 | . . . . 3 Allies Corrupted . | . . . . . Allies Melted . | . . . . . Intel | -11 -10 -10 -9 -9 ------- Run | Scr Mat Min Mat Min Robot Analysis Total . | . . . . . Derelict Logs Recovered 2 | . . 2 . . Drone Launches . | . . . . . Drone Recoveries . | . . . . . Exploration | -11 -10 -10 -9 -9 ------------- Run | Scr Mat Min Mat Min Turns Passed 1244 | 62 28 258 498 398 Spaces Moved 908 | 39 54 398 198 219 Core 495 | 9 54 398 34 . Treads 382 | . . . 163 219 Legs 31 | 30 . . 1 . Wheels . | . . . . . Hover . | . . . . . Flight . | . . . . . Fastest Speed 50 | 50 50 50 50 160 Average Speed 100 | 111 50 50 147 160 Slowest Speed 160 | 120 50 50 160 160 Overloaded Moves . | . . . . . Propulsion Burnouts . | . . . . . Robots Hopped . | . . . . . Cave-ins Triggered . | . . . . . Exploration Rate (%) 39 | 4 15 94 21 61 Regions Visited 4 Branch Regions 2 Pre-discovered Areas 1 | . . 1 . . Known Exits Taken . | . . . . . Unknown Exits Taken 4 | 1 1 1 1 . Scrap Searched 4 | . . 1 . 3 Spaces Dug . | . . . . . Terrain Destroyed . | . . . . . Melee . | . . . . . Projectile . | . . . . . AOE . | . . . . . Actions | -11 -10 -10 -9 -9 --------- Run | Scr Mat Min Mat Min Total 1095 | 55 54 436 311 239 Wait 87 | 12 . 28 47 . Move 904 | 38 53 397 197 219 Hop . | . . . . . Pick Up 6 | . . 1 5 . Fast Attach 9 | 5 . . 4 . Attach 2 | . . . 2 . Detach 1 | . 1 . . . Swap 6 | . . . 5 1 Drop 4 | . . . 4 . Fire 76 | . . 10 47 19 Melee . | . . . . . Ram . | . . . . . Kick . | . . . . . Crush . | . . . . . Escape Stasis . | . . . . . Rewire . | . . . . . Trap . | . . . . . Miscellaneous . | . . . . . Route ------- -11/Scrapyard -10/Materials -10/Mines (discovered 2 exits: [*Mat x2]) -9/Materials -9/Mines (discovered 1 exit: [*Mat]) History --------- Turn | Location | Event 10 | -11/Scrapyard | Discovered new exit (range 16) 63 | -11/Scrapyard | Entered Materials 83 | -10/Materials | Discovered new exit (range 16) 91 | -10/Materials | Entered Mines 106 | -10/Mines | Discovered new exit (range 8) 129 | -10/Mines | Discovered new exit (range 10) 189 | -10/Mines | Learned location of Mines (-8) 312 | -10/Mines | Build established: Mutant 349 | -10/Mines | Entered Materials 349 | -9/Materials | Evolved 2 slots: Propulsion x1, Utility x1 405 | -9/Materials | Lost 3 parts (2n1w) 754 | -9/Materials | Build established: Scavenger-Mutant 805 | -9/Materials | Discovered new exit (range 16) 847 | -9/Materials | Entered Mines 861 | -9/Mines | Met a Derelict bent on vengeance 868 | -9/Mines | Assisted by bots powering up and referring to "LRC-V3" 1003 | -9/Mines | Discovered new exit (range 11) 1207 | -9/Mines | Excavation squad dispatched 1207 | -9/Mines | A large section of the Mines collapsed 1245 | -9/Mines | Self-destructed Last Messages --------------- 00948_ Found 41 Matter. 00948_ Found Welding Torch. 00972_ J0S#S#VJTYMAG6JAET0L 00988_ K-01 Serf collects debris. 01003_ EXIT=FOUND 01005_ C-30 ARC bursts open, deploying its payload. 01005_ G-34 Mercenary unfolds itself. 01010_ B-36 Bruiser destroyed. 01012_ Destroyed Sml. Laser. 01013_ Mercenary 2a destroyed. 01015_ G-34 Mercenary destroyed. 01021_ Acquired 24 matter. 01075_ K-01 Serf collects debris. 01207_ Trooper 2b crushed by falling debris. 01207_ ALERT: Suspicious cave-in, suspected derelict activity in mines. Dispatching escorted excavation squad. 01213_ System corrupted: Hvy. Assault Rifle jammed. 01213_ as-87491 destroyed. 01215_ System corrupted: Energy discharge (-57). 01219_ Acquired 20 matter. Map ----- +----------------------------------------------------+ | | | | | | | | | | | | | | | | | | | | | | | | | | | | | | | | | | | | | ?????????????????????????????????????????????????? | | ?????????????????????????????????????????????????? | | #???######??????????###??????????????????????????? | | ##?## ##????????## #??#####??????????????????? | | ### #????????# ## ##?????????????????? | | #????????# ##????????????????? | | ##????????# #### #????????????????? | | ## ########??# #;@# #????????????????? | | ###### ## ##?###### #????????????????? | | ##????## #????# # #????????????????? | | #??????# ###### #? ##????????????????? | | #??????# #??##?????????????????? | | ##?????## #?????????????????????? | | ####??## #### ##?????????????????????? | | #### ##??# #??????????????????????? | | ##???# #??????????????????????? | | ### #????# #??????????????????????? | | ??## ## #???# #??????????????????????? | | ???# #### #??# ??????????????????????? | | ???## ##??# #??##??????????????????????? | | ????## ####???# #?????????????????????????? | | ????## ##??????# #????????????????????????? | | ???## ##???????## ???????????????????????? | | ??## ##?????????## ??????????????????????? | | ??# ##??????????# ?????????????????????? | | ?## ##?????????? #????????????????????? | | ## #?????????? ####????????????????????? | | #??????????? ##???????????????????????? | | #??????????# #????????????????????????? | | ##????????## ??????????????????????????? | | #?????????# ??????????????????????????? | | ##?????????# ??????????????????????????? | +----------------------------------------------------+ Best States ------------- Heat Dissipation 28 Energy Generation 10 Energy Capacity 250 Matter Stores 300 Matter Capacity 300 Sight Range 16 Terrain Scan Density 10 Armor Coverage 150 Evasion (%) 50 Recoil Reduction 3 Item Schematics ----------------- None Robot Schematics ------------------ None Fabricated ------------ Nothing Alien Tech Used ----------------- None Achievements -------------- None Challenges ------------ None Game ------ Seed PotentialAutogunScreen Manual? 0 Play Time 00:09:20 Cumulative 116.1 hours Start 2019.11.11 @ 14:59:38 End 2019.11.11 @ 15:08:12 Sessions 1 Manual Loads 0 Difficulty Rogue Special Mode None Game No. 208 Rogue 208 Adventurer 0 Explorer 0 Win Type - Total 0 Types 0/0/0/0/0/0/0 Lore% 33 Gallery% 50 Achievement% 34 Wizard Run 0 Options --------- ASCII 0 Keyboard 0 Movement Mouse Keybinds 0 Fullscreen 1 Font 18/SmallcapsGlow Map View 76x50 Tactical HUD 1 Map Filters NONE Filters NONE Steam 1 RUN: 1518fbd6-fa66-4584-825f-a1f5d761c7b3